bitfinex-derivatives/quotes_SOLF0:USTF0_20250730
["timestamp","ask_amount","ask_price","bid_price","bid_amount"]
[1753848396069,5.4915,182.13,182.1,5.4923]
[1753848396270,8.5415,182.13,182.11,3.0]
[1753848396572,6.17943052,182.2,182.09,3.0]
[1753848396573,3.05,182.16,182.09,3.0]
[1753848396764,3.05,182.13,182.07,3.0]
[1753848396959,9.26705811,182.21,182.08,3.0]
[1753848396960,3.05,182.11,182.08,3.0]
[1753848397169,3.05,182.11,182.07,3.0]
[1753848397469,3.05,182.09,182.07,3.0]
[1753848397870,3.05,182.08,182.07,3.0]
[1753848398370,3.05,182.14,182.07,3.0]
[1753848398572,4.62117011,182.15,182.07,3.0]
[1753848398573,3.05,182.12,182.07,3.0]
[1753848398865,12.69625647,182.11,182.09,3.0]
[1753848399072,3.05,182.14,182.07,3.0]
[1753848399372,5.4928,182.09,182.07,3.0]
[1753848399574,3.05,182.08,182.07,3.0]
[1753848399769,3.05,182.08,182.06,116.92]
[1753848399974,3.05,182.07,182.06,116.92]
[1753848400368,3.05,182.07,182.05,3.0]
[1753848400672,3.05,182.13,182.05,3.0]
[1753848400864,3.05,182.11,182.06,3.0]
[1753848401068,3.05,182.09,182.07,3.0]
[1753848401268,3.05,182.11,182.08,3.0]
[1753848401569,8.5426,182.1,182.09,3.0]
[1753848401875,3.05,182.12,182.09,3.0]
[1753848402076,9.64366978,182.11,182.09,3.0]
[1753848402376,5.4922,182.11,182.1,3.0]
[1753848402576,4.1507551,182.11,182.1,3.0]
[1753848403774,3.05,182.15,182.1,8.4923]
[1753848404077,7.20001778,182.14,182.12,3.0]
[1753848404376,7.20001778,182.13,182.12,3.0]
[1753848404573,12.69161778,182.13,182.12,3.0]
[1753848404774,12.69161778,182.13,182.01,486.34]
[1753848404775,3.05,182.12,182.08,3.0]
[1753848404975,3.05,182.12,182.07,3.0]
[1753848405177,3.05,182.09,182.06,5.4934]
[1753848405371,3.05,182.14,182.02,3.0]
[1753848405676,7.19957011,182.13,182.02,3.0]
[1753848405872,3.05,182.13,182.03,3.0]
[1753848406177,3.05,182.15,182.03,3.0]
[1753848406478,3.05,182.13,182.05,3.0]
[1753848406675,5.4917,182.12,182.08,5.4927]
[1753848406976,8.5417,182.12,182.09,3.0]
[1753848408074,8.5417,182.12,182.08,5.4928]
[1753848408376,3.05,182.1,182.09,3.0]
[1753848408677,8.5423,182.1,182.09,3.0]
[1753848409380,5.4921,182.11,182.09,3.0]
[1753848409574,8.5421,182.11,182.1,3.0]
[1753848411778,8.4524,182.1,182.09,2.95]
[1753848415577,2.96,182.08,182.04,117.16]
[1753848415779,2.96,182.14,182.05,2.95]
[1753848415983,2.96,182.12,182.03,2.95]
[1753848416280,2.96,182.11,182.03,2.95]
[1753848416480,2.96,182.09,182.03,2.95]
[1753848416782,4.15118534,182.08,182.02,2.95]
[1753848416985,2.96,182.1,182.02,2.95]
[1753848417172,4.15022881,182.09,182.08,2.95]
[1753848417484,5.4925,182.1,182.08,2.95]
[1753848417686,5.4925,182.1,182.09,2.95]
[1753848417881,7.10952003,182.1,182.07,2.95]
[1753848418072,2.96,182.13,182.07,2.95]
[1753848418278,2.96,182.11,182.07,2.95]
[1753848418477,8.4529,182.08,182.07,2.95]
[1753848419488,5.4929,182.08,182.07,2.95]
[1753848420580,2.96,182.13,182.07,2.95]
[1753848420781,7.07542099,182.12,182.08,2.95]
[1753848420981,9.60762099,182.11,182.08,2.95]
[1753848421278,4.11542099,182.1,182.08,8.4429]
[1753848421482,5.4918,182.12,182.09,2.95]
[1753848421685,4.11555595,182.11,182.09,2.95]
[1753848421878,5.4918,182.12,182.09,2.95]
[1753848422081,5.4918,182.12,182.05,117.16]
[1753848422082,8.4512,182.14,182.1,2.95]
[1753848422388,4.11524906,182.13,182.1,2.95]
[1753848422685,5.4916,182.13,182.1,2.95]
[1753848422884,8.4516,182.13,182.1,2.95]
[1753848423086,2.96,182.13,182.06,2.95]
[1753848423286,2.96,182.17,182.09,2.95]
[1753848423583,2.96,182.16,182.09,2.95]
[1753848423891,2.96,182.14,182.09,2.95]
[1753848424190,2.96,182.12,182.09,2.95]
[1753848424588,8.4523,182.1,182.09,2.95]
[1753848424783,2.96,182.16,182.07,2.95]
[1753848424986,2.96,182.15,182.07,2.95]
[1753848425287,4.62117011,182.16,182.08,2.95]
[1753848425288,2.96,182.13,182.08,2.95]
[1753848425487,7.07664534,182.12,182.08,2.95]
[1753848425788,2.96,182.14,182.08,2.95]
[1753848425986,4.11702697,182.13,182.1,2.95]
[1753848426188,2.96,182.11,182.1,2.95]
[1753848426388,8.452,182.11,182.1,2.95]
[1753848426988,2.96,182.1,182.09,2.95]
[1753848428084,2.96,182.15,182.09,2.95]
[1753848428285,7.07937707,182.14,182.09,2.95]
[1753848428589,4.11937707,182.13,182.09,2.95]
[1753848428788,5.4915,182.13,182.1,5.4923]
[1753848429089,5.4915,182.13,182.11,2.95]
[1753848432488,2.96,182.14,182.11,2.95]
[1753848432687,5.4917,182.12,182.06,2.95]
[1753848435387,8.4517,182.12,182.09,5.4924]
[1753848435588,8.4517,182.12,182.11,2.95]
[1753848435794,12.57383183,182.12,182.11,2.95]
[1753848436790,4.12213183,182.12,182.11,2.95]
[1753848437098,2.96,182.14,182.11,2.95]
[1753848437297,4.12210493,182.13,182.11,2.95]
[1753848437594,2.96,182.14,182.11,2.95]
[1753848437794,4.12211647,182.13,182.11,2.95]
[1753848437997,2.96,182.14,182.11,2.95]
[1753848438297,4.12211647,182.13,182.11,2.95]
[1753848438495,2.96,182.13,182.12,2.95]
[1753848438795,12.57352803,182.13,182.12,2.95]
[1753848439091,2.96,182.12,182.1,2.95]
[1753848439492,4.61864458,182.16,182.09,5.4925]
[1753848439694,4.61864458,182.16,182.08,5.4929]
[1753848439896,2.96,182.11,182.1,2.95]
[1753848440799,2.96,182.11,182.09,5.4926]
[1753848440800,2.96,182.12,182.11,2.95]
[1753848441492,7.0829392,182.12,182.11,2.95]
[1753848443002,3.05,182.1,182.09,3.0]
[1753848443703,3.05,182.11,182.08,5.4928]
[1753848444000,3.05,182.11,182.1,3.0]
[1753848444199,5.4917,182.12,182.09,5.4925]
[1753848444402,8.5417,182.12,182.11,3.0]
[1753848444595,12.66491724,182.12,182.11,3.0]
[1753848445997,4.12321724,182.12,182.11,3.0]
[1753848446394,5.491,182.15,182.11,8.4917]
[1753848446602,4.12318205,182.14,182.11,5.4917]
[1753848446797,4.12318205,182.13,182.12,3.0]
[1753848447199,3.05,182.18,182.12,3.0]
[1753848447397,4.12272809,182.17,182.12,3.0]
[1753848447598,9.61332809,182.16,182.13,5.4912]
[1753848447799,4.12272809,182.15,182.14,3.0]
[1753848448405,3.05,182.17,182.06,3.0]
[1753848448598,4.12104655,182.16,182.06,3.0]
[1753848448799,3.05,182.17,182.06,3.0]
[1753848449001,4.12104655,182.16,182.06,3.0]
[1753848449197,3.05,182.17,182.06,3.0]
[1753848449401,12.66153049,182.16,182.14,3.0]
[1753848449612,8.5406,182.16,182.14,3.0]
[1753848449907,7.17035907,182.15,182.13,3.0]
[1753848450207,3.05,182.14,182.13,3.0]
[1753848450403,3.05,182.13,182.12,8.4916]
[1753848450607,3.05,182.19,182.12,8.4916]
[1753848450809,4.11014022,182.18,182.12,5.4916]
[1753848451106,3.05,182.16,182.13,3.0]
[1753848451307,12.65114022,182.15,182.14,3.0]
[1753848453110,4.11014022,182.15,182.14,3.0]
[1753848453306,7.16014022,182.15,182.14,3.0]
[1753848453610,3.05,182.15,182.14,3.0]
[1753848453810,8.5408,182.15,182.14,3.0]
[1753848454412,5.4908,182.15,182.14,3.0]
[1753848454712,3.05,182.17,182.14,3.0]
[1753848454911,4.10847218,182.16,182.14,3.0]
[1753848455116,8.5401,182.18,182.15,5.4908]
[1753848455312,4.10805091,182.17,182.16,3.0]
[1753848455704,9.59825091,182.17,182.16,3.0]
[1753848456013,12.64825091,182.17,182.16,3.0]
[1753848457010,8.5402,182.17,182.16,3.0]
[1753848457202,5.4902,182.17,182.16,3.0]
[1753848457613,5.49,182.18,182.16,3.0]
[1753848458013,8.54,182.18,182.16,3.0]
[1753848458214,8.54,182.18,182.17,3.0]
[1753848458414,12.64600791,182.18,182.17,3.0]
[1753848462220,5.4905,182.16,182.15,3.0]
[1753848462421,8.5405,182.16,182.15,3.0]
[1753848463313,5.4905,182.16,182.15,3.0]
[1753848463713,5.4901,182.18,182.15,3.0]
[1753848464020,4.10614168,182.17,182.15,3.0]
[1753848464214,3.05,182.17,182.14,5.491]
[1753848464418,8.5405,182.17,182.16,3.0]
[1753848464622,12.64714356,182.17,182.16,3.0]
[1753848464820,3.05,182.16,182.14,3.0]
[1753848465118,8.541,182.15,182.14,3.0]
[1753848466211,5.491,182.15,182.14,3.0]
[1753848466416,3.05,182.19,182.14,3.0]
[1753848466612,4.10662605,182.18,182.14,3.0]
[1753848466817,4.10662605,182.17,182.15,5.4907]
[1753848467019,4.10662605,182.17,182.16,3.0]
[1753848468619,9.59682605,182.17,182.16,3.0]
[1753848468925,12.64682605,182.17,182.16,3.0]
[1753848469128,5.4907,182.16,182.07,116.9]
[1753848469424,8.5407,182.16,182.15,3.0]
[1753848470929,5.4907,182.16,182.15,3.0]
[1753848472319,2.95,182.19,182.15,3.0]
[1753848472512,4.10745624,182.18,182.15,3.0]
[1753848472715,5.49,182.18,182.16,3.2]
[1753848474324,5.4902,182.17,182.14,5.491]
[1753848474924,5.4902,182.17,182.15,3.2]
[1753848475429,2.95,182.16,182.15,3.2]
[1753848475728,2.95,182.15,182.06,3.2]
[1753848477328,8.4409,182.15,182.09,3.2]
[1753848477626,4.61864458,182.2,182.09,3.2]
[1753848477827,2.95,182.13,182.11,5.4917]
[1753848478031,2.95,182.13,182.12,3.2]
[1753848478227,2.95,182.14,182.12,3.2]
[1753848478525,8.4414,182.13,182.12,3.2]
[1753848478831,4.61864458,182.18,182.07,5.493]
[1753848479026,2.95,182.17,182.08,3.2]
[1753848479221,2.95,182.15,182.08,3.2]
[1753848479423,2.95,182.13,182.08,3.2]
[1753848479626,2.95,182.15,182.08,3.2]
[1753848479828,4.10896155,182.14,182.08,3.2]
[1753848480029,2.95,182.15,182.08,3.2]
[1753848480228,2.95,182.13,182.1,3.2]
[1753848480632,2.95,182.12,182.11,3.2]
[1753848480930,2.95,182.12,182.09,3.2]
[1753848481333,2.95,182.09,182.07,3.2]
[1753848481529,2.95,182.08,182.07,3.2]
[1753848482830,5.4927,182.09,182.07,3.2]
[1753848483030,8.4429,182.08,182.07,3.2]
[1753848483337,2.95,182.08,182.05,122.36018868]
[1753848483631,2.95,182.06,181.97,116.84]
[1753848483832,2.95,182.1,182.03,3.2]
[1753848484033,2.95,182.08,182.03,3.2]
[1753848484231,4.10821541,182.07,182.04,3.2]
[1753848484423,2.95,182.05,182.04,3.2]
[1753848484629,2.95,182.1,181.98,3.2]
[1753848484828,2.95,182.08,181.98,3.2]
[1753848485029,2.95,182.06,181.98,3.2]
[1753848485827,4.10253167,182.05,181.98,3.2]
[1753848486023,2.95,182.04,181.98,3.2]
[1753848487147,2.95,181.99,181.98,3.2]
[1753848487728,2.95,182.0,181.93,3.2]
[1753848487930,2.95,182.02,181.93,3.2]
[1753848488329,5.4953,182.01,181.97,5.4961]
[1753848488526,2.95,182.01,181.98,3.2]
[1753848488734,2.95,182.01,181.97,5.4961]
[1753848488934,8.4451,182.01,181.98,3.2]
[1753848489135,2.95,182.01,181.98,3.2]
[1753848489636,121.53864458,182.11,181.97,5.4961]
[1753848489836,2.95,182.01,182.0,3.2]
[1753848490039,2.95,182.02,182.01,3.2]
[1753848490739,2.95,182.03,182.02,3.2]
[1753848491037,2.95,182.1,182.02,3.2]
[1753848491233,5.494,182.05,182.02,3.2]
[1753848491437,2.95,182.07,182.02,3.2]
[1753848491638,116.92,182.11,182.02,3.2]
[1753848491834,5.4941,182.04,182.02,3.2]
[1753848492035,5.4941,182.04,182.03,3.2]
[1753848493745,8.4447,182.03,181.93,3.2]
[1753848493938,2.95,182.03,181.98,5.4957]
[1753848494140,2.95,182.01,181.98,5.4957]
[1753848494335,2.95,182.0,181.99,3.2]
[1753848494540,2.95,182.0,181.95,5.4965]
[1753848494742,2.95,181.99,181.96,3.2]
[1753848495047,8.4458,181.99,181.97,3.2]
[1753848495344,8.4458,181.99,181.95,5.4965]
[1753848495540,8.4458,181.99,181.98,3.2]
[1753848496441,2.95,181.99,181.98,3.2]
[1753848496640,2.95,182.0,181.99,3.2]
[1753848497136,2.95,181.99,181.98,3.2]
[1753848499349,8.4456,181.99,181.98,3.2]
[1753848499843,5.4956,181.99,181.98,3.2]
[1753848500051,5.4954,182.0,181.99,3.2]
[1753848501337,8.5554,182.0,181.99,3.2]
[1753848502357,5.4954,182.0,181.99,3.2]
[1753848504052,5.4958,181.99,181.97,3.22]
[1753848504354,5.4958,181.99,181.98,3.22]
[1753848506257,8.5554,182.0,181.99,3.22]
[1753848508157,3.06,181.97,181.94,3.22]
[1753848508460,2.69215654,181.99,181.94,3.22]
[1753848508662,8.5561,181.98,181.94,8.7169]
[1753848508853,8.5561,181.98,181.94,5.4969]
[1753848509058,8.5561,181.98,181.95,3.22]
[1753848509650,5.4962,181.97,181.95,3.22]
[1753848509856,3.06,181.98,181.95,3.22]
[1753848510155,5.75215654,181.99,181.95,3.22]
[1753848510356,5.4961,181.98,181.95,3.22]
[1753848511261,5.4961,181.98,181.96,3.22]
[1753848512257,11.24785654,181.99,181.96,3.22]
[1753848512556,8.18785654,181.99,181.96,3.22]
[1753848512759,2.69215654,181.99,181.96,3.22]
[1753848513161,5.75215654,181.99,181.96,3.22]
[1753848514066,3.06,181.99,181.96,3.22]
[1753848514867,5.4959,181.98,181.96,3.22]
[1753848515869,8.5557,181.99,181.96,3.22]
[1753848516659,2.69215654,182.0,181.96,5.4965]
[1753848516660,8.18755654,182.0,181.96,5.4965]
[1753848516861,3.06,182.01,181.97,3.22]
[1753848518362,8.5551,182.01,181.97,5.4962]
[1753848518562,8.5551,182.01,181.98,3.22]
[1753848519064,3.06,182.01,181.93,2.69215654]
[1753848519265,3.06,182.01,182.0,3.22]
[1753848519767,8.555,182.01,182.0,3.22]
[1753848519964,2.69215654,182.02,181.93,2.69215654]
[1753848520167,2.69215654,182.04,181.98,3.22]
[1753848520367,3.06,182.03,181.98,3.22]
[1753848521067,8.5548,182.02,181.98,8.7157]
[1753848521269,8.5548,182.02,181.99,3.22]
[1753848521576,5.75215654,182.04,181.99,3.22]
[1753848522063,11.24635654,182.04,182.0,5.4952]
[1753848522258,11.24635654,182.04,182.01,3.22]
[1753848522456,2.69215654,182.04,182.01,3.22]
[1753848522666,2.69215654,182.04,182.01,8.715]
[1753848522968,2.69215654,182.04,182.02,3.22]
[1753848523264,5.75215654,182.04,182.02,3.22]
[1753848523567,4.10869809,182.03,182.02,3.22]
[1753848524864,11.24635654,182.04,182.02,3.22]
[1753848525568,4.11201018,182.03,182.02,3.22]
[1753848525970,8.5542,182.04,182.02,3.22]
[1753848526169,11.24635654,182.04,182.02,3.22]
[1753848526370,4.11472674,182.03,182.02,3.22]
[1753848528965,7.17472674,182.03,182.0,3.22]
[1753848529270,3.06,182.01,182.0,3.22]
[1753848530974,8.5548,182.02,182.0,3.22]
[1753848531274,8.5548,182.02,181.99,5.4956]
[1753848531475,8.5548,182.02,182.01,2.96]
[1753848531777,12.67770764,182.02,182.01,2.96]
[1753848532472,3.03,182.01,181.96,2.96]
[1753848532974,3.03,181.99,181.96,8.4563]
[1753848533274,3.03,181.99,181.97,2.96]
[1753848534565,3.03,181.99,181.96,2.96]
[1753848536374,5.4961,181.98,181.96,2.96]
[1753848537372,8.5261,181.98,181.96,2.96]
[1753848538576,5.4961,181.98,181.96,2.96]
[1753848538776,5.4957,181.99,181.96,2.96]
[1753848539073,5.4957,181.99,181.96,8.4565]
[1753848539275,5.4957,181.99,181.97,2.96]
[1753848539670,8.5257,181.99,181.97,2.96]
[1753848540269,5.4957,181.99,181.97,2.96]
[1753848541077,5.72215654,182.02,181.98,2.96]
[1753848541275,4.21875294,182.01,181.98,2.96]
[1753848541471,4.21875294,182.0,181.98,2.96]
[1753848541674,5.72215654,182.02,181.98,2.96]
[1753848541880,4.21848788,182.01,181.99,2.96]
[1753848542079,4.21848788,182.0,181.99,2.96]
[1753848544079,4.21848788,182.0,181.99,8.4556]
[1753848544280,2.69215654,182.04,181.99,5.4956]
[1753848544481,3.03,182.01,182.0,2.96]
[1753848544681,7.24810106,182.01,182.0,2.96]
[1753848544983,4.21810106,182.01,182.0,2.96]
[1753848545483,4.21810106,182.02,182.0,2.96]
[1753848545678,4.21810106,182.01,182.0,2.96]
[1753848546081,4.21810106,182.02,182.0,2.96]
[1753848546378,7.24810106,182.01,182.0,2.96]
[1753848547480,4.21810106,182.01,182.0,2.96]
[1753848547882,4.21810106,182.02,182.0,2.96]
[1753848548079,4.21810106,182.01,182.0,2.96]
[1753848549484,4.21810106,182.01,182.0,8.4553]
[1753848552989,4.61864458,182.07,182.01,2.96]
[1753848553184,4.2174195,182.06,182.01,2.96]
[1753848553385,4.2174195,182.05,182.04,5.4941]
[1753848553689,4.2174195,182.05,182.04,8.4541]
[1753848555291,3.03,182.07,182.04,8.4541]
[1753848555486,4.21309013,182.06,182.05,2.96]
[1753848556285,7.24309013,182.06,182.05,2.96]
[1753848557587,4.21309013,182.06,182.05,8.4538]
[1753848557788,5.72215654,182.1,182.06,2.96]
[1753848557988,4.21101707,182.09,182.06,2.96]
[1753848558189,4.21101707,182.08,182.06,2.96]
[1753848558390,11.21455654,182.1,182.06,2.96]
[1753848558591,4.20975825,182.09,182.06,2.96]
[1753848558889,4.20975825,182.08,182.06,8.4535]
[1753848559089,4.20975825,182.07,182.06,5.4935]
[1753848559290,4.20975825,182.08,182.06,5.4935]
[1753848559593,8.5221,182.11,182.05,2.96]
[1753848559784,4.20864982,182.1,182.05,2.96]
[1753848559990,4.20864982,182.09,182.05,2.96]
[1753848560189,3.03,182.11,182.05,2.96]
[1753848560390,4.20859081,182.1,182.05,2.96]
[1753848560696,4.20859081,182.09,182.05,2.96]
[1753848560890,3.03,182.1,182.05,2.96]
[1753848561191,4.20715099,182.09,182.05,2.96]
[1753848561493,3.03,182.1,182.09,3.19]
[1753848561690,4.20594202,182.1,182.09,3.19]
[1753848561883,4.20594202,182.1,182.09,8.6826]
[1753848562088,3.05,182.15,182.09,3.19]
[1753848562283,4.20519122,182.14,182.09,3.19]
[1753848562488,3.05,182.15,182.09,3.19]
[1753848562691,4.20241051,182.14,182.09,3.19]
[1753848562890,2.69215654,182.15,182.09,3.19]
[1753848563085,3.05,182.13,182.09,3.19]
[1753848563287,3.05,182.15,182.09,3.19]
[1753848563594,4.20023941,182.14,182.09,3.19]
[1753848563796,3.05,182.15,182.09,3.19]
[1753848563993,4.20017037,182.14,182.1,2.69215654]
[1753848564190,3.05,182.16,182.13,5.4912]
[1753848564496,3.05,182.18,182.14,3.19]
[1753848564794,7.24775845,182.17,182.14,3.19]
[1753848564999,3.05,182.17,182.14,3.19]
[1753848565294,8.5401,182.18,182.14,3.19]
[1753848565695,8.5394,182.2,182.17,3.19]
[1753848565898,7.24390438,182.19,182.18,3.19]
[1753848566294,3.05,182.19,182.18,3.19]
[1753848569600,8.5396,182.19,182.18,3.19]
[1753848570094,3.05,182.19,182.15,5.4908]
[1753848570398,116.9,182.23,182.15,3.19]
[1753848570399,3.05,182.18,182.15,3.19]
[1753848570596,5.74215654,182.18,182.15,3.19]
[1753848570797,3.05,182.16,182.15,3.19]
[1753848572192,8.5405,182.16,182.15,3.19]
[1753848573400,5.4909,182.15,182.13,3.19]
[1753848573602,8.5409,182.15,182.13,3.19]
[1753848574103,3.05,182.15,182.13,3.19]
[1753848574304,5.4906,182.16,182.14,3.19]
[1753848575097,3.05,182.19,182.15,3.19]
[1753848575301,3.05,182.18,182.15,3.19]
[1753848575903,8.5401,182.18,182.15,3.19]
[1753848576103,3.05,182.18,182.15,3.19]
[1753848576598,5.74215654,182.2,182.16,3.19]
[1753848577104,8.5398,182.19,182.16,3.19]
[1753848577604,3.05,182.19,182.16,3.19]
[1753848578503,3.05,182.19,182.17,3.19]
[1753848578700,2.69215654,182.18,182.13,3.19]
[1753848578901,3.05,182.17,182.13,3.19]
[1753848579103,5.4908,182.15,182.13,3.19]
[1753848581199,8.5408,182.15,182.12,3.19]
[1753848583806,3.05,182.14,182.13,3.19]
[1753848584809,5.4906,182.16,182.13,3.19]
[1753848585006,3.05,182.15,182.13,3.19]
[1753848585406,3.05,182.17,182.13,3.19]
[1753848586214,8.5408,182.15,182.13,3.19]
[1753848586706,5.4908,182.15,182.13,3.19]
[1753848587309,8.5406,182.16,182.13,3.19]
[1753848589919,3.05,182.15,182.13,3.19]
[1753848591810,5.4906,182.16,182.14,3.01]
[1753848592415,8.4906,182.16,182.14,3.01]
[1753848595016,3.0,182.16,182.14,3.01]
[1753848596213,8.4905,182.16,182.14,3.01]
[1753848597814,3.0,182.15,182.14,3.01]
[1753848600512,8.4908,182.15,182.1,2.69215654]
[1753848600713,3.0,182.14,182.13,3.01]
[1753848601116,3.0,182.14,182.09,3.01]
[1753848601415,3.0,182.12,182.06,3.01]
[1753848601616,8.4919,182.12,182.08,5.4929]
[1753848601813,3.0,182.11,182.03,2.69215654]
[1753848602014,2.69215654,182.1,182.04,3.01]
[1753848602209,5.4931,182.08,182.04,3.01]
[1753848602417,2.69215654,182.1,182.04,3.01]
[1753848602811,3.0,182.14,182.08,3.01]
[1753848603121,4.18022197,182.13,182.08,3.01]
[1753848603314,4.18022197,182.12,182.08,3.01]
[1753848603623,5.69215654,182.14,182.08,3.01]
[1753848603918,12.67268598,182.13,182.09,3.01]
[1753848604116,4.18128598,182.12,182.09,3.01]
[1753848604420,3.0,182.15,182.09,3.01]
[1753848604614,4.18235499,182.14,182.09,3.01]
[1753848604809,4.18235499,182.13,182.09,3.01]
[1753848605013,4.18235499,182.12,182.09,3.01]
[1753848605220,3.0,182.15,182.09,3.01]
[1753848605519,4.18191276,182.14,182.11,3.01]
[1753848605719,4.18191276,182.13,182.11,3.01]
[1753848605917,5.491,182.15,182.11,3.01]
[1753848606120,4.18297324,182.14,182.11,3.01]
[1753848606323,8.491,182.15,182.11,3.01]
[1753848606324,4.18297324,182.13,182.11,3.01]
[1753848606619,8.491,182.15,182.11,3.01]
[1753848606814,4.18411443,182.14,182.11,3.01]
[1753848607014,4.18411443,182.13,182.11,3.01]
[1753848607214,8.491,182.15,182.11,3.01]
[1753848607410,4.1840935,182.14,182.11,5.4919]
[1753848607610,4.1840935,182.13,182.12,3.01]
[1753848609823,8.4912,182.14,182.12,3.01]
[1753848609824,3.0,182.14,182.12,3.01]
[1753848610019,8.4909,182.15,182.12,3.01]
[1753848610219,4.183968,182.14,182.12,3.01]
[1753848610422,8.4909,182.15,182.12,3.01]
[1753848610624,4.1839846,182.14,182.12,3.01]
[1753848610822,10.21104426,182.15,182.12,3.01]
[1753848611022,4.1839846,182.14,182.12,3.01]
[1753848611228,5.4909,182.15,182.12,4.73014426]
[1753848611524,7.18407723,182.14,182.13,3.01]
[1753848612324,12.67517723,182.14,182.13,3.01]
[1753848613325,4.18407723,182.14,182.13,3.01]
[1753848617527,9.67517723,182.14,182.13,3.01]
[1753848618021,12.67517723,182.14,182.13,3.01]
[1753848624026,9.67517723,182.14,182.13,3.01]
[1753848624325,4.18407723,182.14,182.13,3.01]
[1753848625424,12.70517723,182.14,182.13,3.01]
[1753848625815,3.03,182.13,182.08,1.72014426]
[1753848626022,8.93422149,182.12,182.1,2.94]
[1753848626221,3.03,182.11,182.1,2.94]
[1753848627027,8.522,182.11,182.1,2.94]
[1753848627526,5.4926,182.09,182.08,1.72014426]
[1753848627723,5.4926,182.09,182.01,116.82]
[1753848627724,3.03,182.08,182.03,1.72014426]
[1753848627919,1.72014426,182.07,182.04,2.94]
[1753848628222,1.72014426,182.09,182.07,2.94]
[1753848629022,8.5221,182.11,182.08,2.94]
[1753848629325,5.90611114,182.1,182.08,2.94]
[1753848629523,1.72014426,182.1,182.08,2.94]
[1753848629728,4.75014426,182.1,182.08,2.94]
[1753848629928,4.75014426,182.1,182.09,2.94]
[1753848630228,3.03,182.09,182.07,2.94]
[1753848631221,10.24254426,182.1,182.07,2.94]
[1753848634632,7.21254426,182.1,182.08,2.94]
[1753848635631,10.24254426,182.1,182.08,2.94]
[1753848636430,5.4926,182.09,182.08,2.94]
[1753848636631,8.5226,182.09,182.08,2.94]
[1753848644126,8.5233,182.07,182.06,2.94]
[1753848644729,5.4933,182.07,182.04,1.72014426]
[1753848644932,4.75014426,182.06,182.05,2.94]
[1753848645131,4.75014426,182.06,182.03,2.94]
[1753848645333,4.75014426,182.04,182.03,2.94]
[1753848646037,10.24454426,182.04,182.03,2.94]
[1753848648037,5.4944,182.03,182.01,2.94]
[1753848648334,3.03,182.02,182.01,2.94]
[1753848648928,8.5247,182.02,182.01,2.94]
[1753848649334,10.24484426,182.02,182.01,2.94]